[Event "MCR rapid mládeže 2023 U16"]
[Site "Harachov, Czech Republic"]
[Date "2023.09.10"]
[Round "8.38"]
[White "Zidkova, Agnes"]
[Black "Hamernikova, Iris"]
[Result "0-1"]
[TimeControl "20min+5s/move"]
[WhiteElo "1045"]
[BlackElo "1387"]

1. e4 {[%clk 00:20:08]} {[%emt 00:00:02]} e5 {[%clk 00:20:09]} {[%emt
00:00:01]} 2. d4 {[%clk 00:20:13]} exd4 {[%clk 00:20:13]} {[%emt 00:00:02]} 3.
Qxd4 {[%clk 00:20:16]} Nc6 {[%clk 00:20:15]} {[%emt 00:00:03]} 4. Qe3 {[%clk
00:20:19]} {[%emt 00:00:01]} Nf6 {[%clk 00:20:18]} {[%emt 00:00:02]} 5. Nc3
{[%clk 00:20:23]} {[%emt 00:00:01]} Bb4 {[%clk 00:20:19]} {[%emt 00:00:03]} 6.
Bd2 {[%clk 00:20:27]} {[%emt 00:00:03]} O-O {[%clk 00:20:17]} {[%emt 00:00:07]}
7. O-O-O {[%clk 00:20:29]} {[%emt 00:00:02]} b6 {[%clk 00:20:16]} {[%emt
00:00:08]} 8. Qg3 {[%clk 00:19:42]} {[%emt 00:00:51]} Bd6 {[%clk 00:20:14]}
{[%emt 00:00:05]} 9. Qe3 {[%clk 00:18:55]} {[%emt 00:00:54]} Bb7 {[%clk
00:19:55]} {[%emt 00:00:22]} 10. Bc4 {[%clk 00:18:25]} {[%emt 00:00:36]} Ne5
{[%clk 00:19:17]} {[%emt 00:00:43]} 11. Bb3 {[%clk 00:17:30]} {[%emt 00:01:00]}
Re8 {[%clk 00:19:07]} {[%emt 00:00:15]} 12. f3 {[%clk 00:16:46]} {[%emt
00:00:49]} Ng6 {[%clk 00:18:17]} {[%emt 00:00:51]} 13. Nge2 {[%clk 00:15:56]}
{[%emt 00:00:59]} Bc5 {[%clk 00:18:13]} {[%emt 00:00:08]} 14. Nd4 {[%clk
00:15:41]} {[%emt 00:00:19]} Bd6 {[%clk 00:17:24]} {[%emt 00:00:54]} 15. Nf5
{[%clk 00:14:29]} {[%emt 00:01:19]} Bc5 {[%clk 00:17:19]} {[%emt 00:00:10]} 16.
Nd4 {[%clk 00:13:20]} {[%emt 00:01:14]} c6 {[%clk 00:16:40]} {[%emt 00:00:43]}
17. Na4 {[%clk 00:11:52]} {[%emt 00:01:34]} Bxd4 {[%clk 00:16:25]} {[%emt
00:00:21]} 18. Qxd4 {[%clk 00:11:47]} {[%emt 00:00:09]} c5 {[%clk 00:16:27]}
{[%emt 00:00:04]} 19. Qe3 {[%clk 00:09:55]} {[%emt 00:01:56]} d5 {[%clk
00:16:22]} {[%emt 00:00:09]} 20. a3 {[%clk 00:08:46]} {[%emt 00:01:16]} dxe4
{[%clk 00:16:16]} {[%emt 00:00:10]} 21. fxe4 {[%clk 00:08:09]} {[%emt
00:00:42]} Bxe4 {[%clk 00:16:03]} {[%emt 00:00:19]} 22. Qf2 {[%clk 00:06:50]}
{[%emt 00:01:21]} Bd5 {[%clk 00:15:20]} {[%emt 00:00:45]} 23. Bxd5 {[%clk
00:06:15]} {[%emt 00:00:45]} Qxd5 {[%clk 00:15:22]} {[%emt 00:00:03]} 24. Bc3
{[%clk 00:05:55]} {[%emt 00:00:25]} Qa2 {[%clk 00:15:02]} {[%emt 00:00:24]} 25.
Bxf6 {[%clk 00:03:58]} {[%emt 00:02:03]} gxf6 {[%clk 00:14:44]} {[%emt
00:00:23]} 26. Qf3 {[%clk 00:03:26]} {[%emt 00:00:38]} Rad8 {[%clk 00:14:21]}
{[%emt 00:00:26]} 27. Rxd8 {[%clk 00:01:41]} {[%emt 00:01:51]} Qa1+ {[%clk
00:14:19]} {[%emt 00:00:07]} 28. Kd2 {[%clk 00:01:39]} {[%emt 00:00:07]} Rxd8+
{[%clk 00:14:22]} {[%emt 00:00:02]} 29. Ke2 {[%clk 00:01:23]} {[%emt 00:00:20]}
Re8+ {[%clk 00:14:20]} {[%emt 00:00:08]} 30. Kd2 {[%clk 00:01:24]} {[%emt
00:00:04]} Qxh1 {[%clk 00:14:22]} {[%emt 00:00:03]} 31. Qxf6 {[%clk 00:01:22]}
{[%emt 00:00:07]} Qe1+ {[%clk 00:14:22]} {[%emt 00:00:03]} 32. Kd3 {[%clk
00:01:21]} {[%emt 00:00:07]} Ne5+ {[%clk 00:14:21]} {[%emt 00:00:06]} 33. Qxe5
{[%clk 00:01:13]} {[%emt 00:00:14]} Rxe5 {[%clk 00:14:21]} {[%emt 00:00:05]} 34.
Kc4 {[%clk 00:01:10]} {[%emt 00:00:08]} Qe2+ {[%clk 00:14:16]} {[%emt
00:00:10]} 35. Kc3 {[%clk 00:01:09]} {[%emt 00:00:06]} Re3# {[%clk 00:14:05]}
{[%emt 00:00:16]} 0-1

[Event "MCR rapid mládeže 2023 U16"]
[Site "Harachov, Czech Republic"]
[Date "2023.09.10"]
[Round "8.39"]
[White "Martikanova, Amalie"]
[Black "Topencikova, Ellen"]
[Result "1-0"]
[TimeControl "20min+5s/move"]
[WhiteElo "1107"]
[BlackElo "1038"]

1. e4 {[%clk 00:20:08]} {[%emt 00:00:02]} e6 {[%clk 00:20:08]} {[%emt
00:00:02]} 2. d4 {[%clk 00:20:12]} {[%emt 00:00:02]} d5 {[%clk 00:20:11]}
{[%emt 00:00:02]} 3. exd5 {[%clk 00:20:13]} {[%emt 00:00:03]} exd5 {[%clk
00:20:13]} {[%emt 00:00:03]} 4. Bd3 {[%clk 00:20:04]} {[%emt 00:00:15]} c5
{[%clk 00:19:59]} {[%emt 00:00:18]} 5. Nf3 {[%clk 00:19:20]} {[%emt 00:00:49]}
Nc6 {[%clk 00:19:39]} {[%emt 00:00:24]} 6. c3 {[%clk 00:18:56]} {[%emt
00:00:31]} c4 {[%clk 00:19:19]} {[%emt 00:00:24]} 7. Bc2 {[%clk 00:18:54]}
{[%emt 00:00:07]} Nf6 {[%clk 00:19:20]} {[%emt 00:00:04]} 8. O-O {[%clk
00:18:38]} {[%emt 00:00:21]} Be7 {[%clk 00:19:06]} {[%emt 00:00:19]} 9. Bf4
{[%clk 00:18:42]} {[%emt 00:00:06]} O-O {[%clk 00:19:11]} {[%emt 00:00:05]} 10.
h3 {[%clk 00:18:44]} {[%emt 00:00:04]} Re8 {[%clk 00:18:47]} {[%emt 00:00:28]}
11. Nbd2 {[%clk 00:18:43]} {[%emt 00:00:07]} Bd6 {[%clk 00:18:40]} {[%emt
00:00:11]} 12. Bg5 {[%clk 00:18:10]} {[%emt 00:00:36]} h6 {[%clk 00:18:36]}
{[%emt 00:00:11]} 13. Bh4 {[%clk 00:18:10]} {[%emt 00:00:03]} Be7 {[%clk
00:18:30]} {[%emt 00:00:12]} 14. Bb1 {[%clk 00:17:50]} {[%emt 00:00:27]} Bd7
{[%clk 00:17:12]} {[%emt 00:01:23]} 15. Qc2 {[%clk 00:17:34]} {[%emt 00:00:20]}
g6 {[%clk 00:16:13]} {[%emt 00:01:04]} 16. Re1 {[%clk 00:17:06]} {[%emt
00:00:34]} Bf5 {[%clk 00:15:44]} {[%emt 00:00:33]} 17. Qd1 {[%clk 00:16:55]}
{[%emt 00:00:15]} Bxb1 {[%clk 00:15:45]} {[%emt 00:00:05]} 18. Qxb1 {[%clk
00:16:45]} {[%emt 00:00:16]} b5 {[%clk 00:14:58]} {[%emt 00:00:51]} 19. Ne5
{[%clk 00:16:01]} {[%emt 00:00:47]} Rc8 {[%clk 00:11:59]} {[%emt 00:03:02]} 20.
Nxg6 {[%clk 00:14:42]} {[%emt 00:01:27]} fxg6 {[%clk 00:11:24]} {[%emt
00:00:40]} 21. Qxg6+ {[%clk 00:14:43]} {[%emt 00:00:04]} Kf8 {[%clk 00:10:33]}
{[%emt 00:00:53]} 22. Bxf6 {[%clk 00:14:34]} {[%emt 00:00:19]} Bxf6 {[%clk
00:10:27]} {[%emt 00:00:10]} 23. Rxe8+ {[%clk 00:14:34]} {[%emt 00:00:05]} Qxe8
{[%clk 00:10:26]} {[%emt 00:00:06]} 24. Qxf6+ {[%clk 00:14:36]} {[%emt
00:00:03]} Qf7 {[%clk 00:10:02]} {[%emt 00:00:26]} 25. Qxh6+ {[%clk 00:14:38]}
{[%emt 00:00:06]} Kg8 {[%clk 00:09:44]} {[%emt 00:00:20]} 26. Qh4 {[%clk
00:14:20]} {[%emt 00:00:20]} Ne7 {[%clk 00:09:20]} {[%emt 00:00:34]} 27. Qg4+
{[%clk 00:14:20]} {[%emt 00:00:05]} Kh8 {[%clk 00:09:19]} {[%emt 00:00:07]} 28.
Re1 {[%clk 00:14:13]} {[%emt 00:00:10]} Rf8 {[%clk 00:08:29]} {[%emt 00:00:57]}
29. Nf3 {[%clk 00:13:40]} {[%emt 00:00:35]} Ng8 {[%clk 00:07:36]} {[%emt
00:01:01]} 30. Re5 {[%clk 00:13:30]} {[%emt 00:00:13]} Nh6 {[%clk 00:07:35]}
{[%emt 00:00:08]} 31. Qh4 {[%clk 00:13:19]} {[%emt 00:00:13]} Kh7 {[%clk
00:07:22]} {[%emt 00:00:20]} 32. Ng5+ {[%clk 00:13:15]} {[%emt 00:00:09]} 1-0

[Event "MCR rapid mládeže 2023 U16"]
[Site "Harachov, Czech Republic"]
[Date "2023.09.10"]
[Round "9.1"]
[White "Jasso, Matej"]
[Black "Juhanak, Daniel"]
[Result "1/2-1/2"]
[TimeControl "20min+5s/move"]
[WhiteElo "1794"]
[BlackElo "1878"]

1. e4 {[%clk 00:20:00]} {[%emt 00:00:09]} e6 {[%clk 00:20:02]} {[%emt
00:00:08]} 2. d4 {[%clk 00:19:33]} {[%emt 00:00:32]} d5 {[%clk 00:20:02]}
{[%emt 00:00:05]} 3. exd5 {[%clk 00:19:35]} {[%emt 00:00:03]} exd5 {[%clk
00:20:06]} {[%emt 00:00:01]} 4. Bd3 {[%clk 00:19:38]} {[%emt 00:00:02]} Bd6
{[%clk 00:19:30]} {[%emt 00:00:41]} 5. Qf3 {[%clk 00:19:35]} {[%emt 00:00:07]}
Nc6 {[%clk 00:17:38]} {[%emt 00:01:59]} 6. c3 {[%clk 00:19:33]} {[%emt
00:00:06]} Nge7 {[%clk 00:16:55]} {[%emt 00:00:48]} 7. Ne2 {[%clk 00:19:22]}
{[%emt 00:00:16]} Be6 {[%clk 00:15:08]} {[%emt 00:01:53]} 8. Bf4 {[%clk
00:15:44]} {[%emt 00:03:43]} Ng6 {[%clk 00:14:22]} {[%emt 00:00:51]} 9. Bxd6
{[%clk 00:15:47]} {[%emt 00:00:02]} Qxd6 {[%clk 00:14:22]} {[%emt 00:00:06]} 10.
O-O {[%clk 00:15:50]} {[%emt 00:00:02]} Nce7 {[%clk 00:13:43]} {[%emt
00:00:43]} 11. Nd2 {[%clk 00:15:30]} {[%emt 00:00:25]} O-O {[%clk 00:12:40]}
{[%emt 00:01:08]} 12. Qh5 {[%clk 00:13:35]} {[%emt 00:01:59]} Rfe8 {[%clk
00:11:53]} {[%emt 00:00:53]} 13. f4 {[%clk 00:13:01]} {[%emt 00:00:39]} f5
{[%clk 00:11:15]} {[%emt 00:00:44]} 14. Qg5 {[%clk 00:08:20]} {[%emt 00:04:43]}
h6 {[%clk 00:09:28]} {[%emt 00:01:54]} 15. Qg3 {[%clk 00:08:24]} {[%emt
00:00:01]} Bf7 {[%clk 00:09:05]} {[%emt 00:00:28]} 16. Nf3 {[%clk 00:08:20]}
{[%emt 00:00:09]} Qf6 {[%clk 00:08:21]} {[%emt 00:00:49]} 17. Ne5 {[%clk
00:07:37]} {[%emt 00:00:48]} Rad8 {[%clk 00:07:32]} {[%emt 00:00:55]} 18. Qf2
{[%clk 00:07:10]} {[%emt 00:00:31]} Nc8 {[%clk 00:06:10]} {[%emt 00:01:27]} 19.
Ng3 {[%clk 00:06:59]} {[%emt 00:00:17]} Nge7 {[%clk 00:05:55]} {[%emt
00:00:20]} 20. Qf3 {[%clk 00:05:12]} {[%emt 00:01:51]} Nd6 {[%clk 00:05:30]}
{[%emt 00:00:30]} 21. Rae1 {[%clk 00:05:05]} {[%emt 00:00:12]} Ne4 {[%clk
00:05:08]} {[%emt 00:00:27]} 22. Nh5 {[%clk 00:04:51]} {[%emt 00:00:18]} Bxh5
{[%clk 00:04:25]} {[%emt 00:00:48]} 23. Qxh5 {[%clk 00:04:55]} {[%emt
00:00:02]} Rf8 {[%clk 00:02:45]} {[%emt 00:01:46]} 24. Re3 {[%clk 00:04:19]}
{[%emt 00:00:41]} Qb6 {[%clk 00:02:29]} {[%emt 00:00:20]} 25. Bxe4 {[%clk
00:02:38]} {[%emt 00:01:45]} dxe4 {[%clk 00:02:05]} {[%emt 00:00:30]} 26. Rg3
{[%clk 00:02:25]} {[%emt 00:00:17]} c5 {[%clk 00:01:46]} {[%emt 00:00:25]} 27.
Ng6 {[%clk 00:01:36]} {[%emt 00:00:54]} Nxg6 {[%clk 00:01:14]} {[%emt
00:00:37]} 28. Rxg6 {[%clk 00:01:38]} {[%emt 00:00:03]} Rd6 {[%clk 00:01:12]}
{[%emt 00:00:07]} 29. dxc5 {[%clk 00:00:12]} {[%emt 00:01:31]} Qxc5+ {[%emt
00:00:11]} 30. Kh1 Rxg6 {[%clk 00:00:58]} {[%emt 00:00:14]} 31. Qxg6 {[%clk
00:00:21]} Rf6 {[%clk 00:00:44]} {[%emt 00:00:19]} 32. Qe8+ {[%clk 00:00:17]}
{[%emt 00:00:09]} Kh7 {[%clk 00:00:48]} {[%emt 00:00:01]} 33. g4 {[%clk
00:00:12]} {[%emt 00:00:09]} Qc4 {[%clk 00:00:32]} {[%emt 00:00:21]} 34. Rg1
{[%clk 00:00:06]} {[%emt 00:00:12]} fxg4 {[%clk 00:00:27]} {[%emt 00:00:09]} 35.
Rxg4 {[%clk 00:00:09]} {[%emt 00:00:02]} Qf1+ {[%clk 00:00:29]} {[%emt
00:00:03]} 36. Rg1 {[%clk 00:00:12]} {[%emt 00:00:02]} Qf3+ {[%clk 00:00:33]}
{[%emt 00:00:02]} 37. Rg2 {[%clk 00:00:16]} Qf1+ {[%clk 00:00:37]} 38. Rg1
{[%clk 00:00:19]} {[%emt 00:00:03]} 1/2-1/2

[Event "MCR rapid mládeže 2023 U16"]
[Site "Harachov, Czech Republic"]
[Date "2023.09.10"]
[Round "9.2"]
[White "Roubal, Matyas"]
[Black "Setina, Vaclav"]
[Result "1/2-1/2"]
[TimeControl "20min+5s/move"]
[WhiteElo "1911"]
[BlackElo "1876"]

1. e4 {[%clk 00:20:07]} {[%emt 00:00:02]} c5 {[%clk 00:20:09]} {[%emt
00:00:01]} 2. Nf3 {[%clk 00:20:10]} {[%emt 00:00:01]} Nc6 {[%clk 00:20:13]} 3.
Bb5 {[%clk 00:20:14]} g6 {[%clk 00:20:15]} {[%emt 00:00:05]} 4. Bxc6 {[%clk
00:20:10]} {[%emt 00:00:10]} dxc6 {[%clk 00:20:19]} 5. O-O {[%clk 00:20:07]}
{[%emt 00:00:08]} Bg7 {[%clk 00:19:44]} {[%emt 00:00:40]} 6. d3 {[%clk
00:20:09]} {[%emt 00:00:03]} Nf6 {[%clk 00:19:44]} {[%emt 00:00:05]} 7. h3
{[%clk 00:20:13]} b6 {[%clk 00:19:44]} {[%emt 00:00:06]} 8. Nc3 {[%clk
00:20:15]} {[%emt 00:00:03]} h6 {[%clk 00:18:54]} {[%emt 00:00:55]} 9. Be3
{[%clk 00:20:00]} {[%emt 00:00:20]} Qc7 {[%clk 00:15:03]} {[%emt 00:03:56]} 10.
Qd2 {[%clk 00:19:43]} {[%emt 00:00:22]} Be6 {[%clk 00:14:33]} {[%emt 00:00:35]}
11. a3 {[%clk 00:18:56]} {[%emt 00:00:52]} g5 {[%clk 00:12:29]} {[%emt
00:02:09]} 12. Nh2 {[%clk 00:18:27]} {[%emt 00:00:35]} Nh5 {[%clk 00:11:29]}
{[%emt 00:01:05]} 13. Rab1 {[%clk 00:16:45]} {[%emt 00:01:47]} Be5 {[%emt
00:15:36]} 14. Nf3 {[%emt 00:00:06]} Bf6 {[%emt 00:00:05]} 15. b4 {[%emt
00:00:05]} cxb4 16. axb4 g4 1/2-1/2

[Event "MCR rapid mládeže 2023 U16"]
[Site "Harachov, Czech Republic"]
[Date "2023.09.10"]
[Round "9.3"]
[White "Andrle, Filip"]
[Black "Popov, Roman"]
[Result "1/2-1/2"]
[TimeControl "20min+5s/move"]
[WhiteElo "1649"]
[BlackElo "1751"]

1. e4 {[%clk 00:20:07]} {[%emt 00:00:01]} c6 {[%clk 00:20:08]} {[%emt
00:00:03]} 2. Nc3 {[%clk 00:20:09]} {[%emt 00:00:03]} d5 {[%clk 00:20:11]}
{[%emt 00:00:02]} 3. Nf3 {[%clk 00:20:11]} {[%emt 00:00:03]} dxe4 {[%clk
00:19:58]} {[%emt 00:00:18]} 4. Nxe4 {[%clk 00:20:14]} {[%emt 00:00:03]} Nf6
{[%clk 00:20:00]} {[%emt 00:00:03]} 5. Qe2 {[%clk 00:20:08]} {[%emt 00:00:11]}
Nxe4 {[%clk 00:19:29]} {[%emt 00:00:36]} 6. Qxe4 {[%clk 00:20:09]} {[%emt
00:00:03]} Nd7 {[%clk 00:19:15]} {[%emt 00:00:19]} 7. Bc4 {[%clk 00:20:10]}
{[%emt 00:00:04]} Nf6 {[%clk 00:17:57]} {[%emt 00:01:24]} 8. Ne5 {[%clk
00:20:11]} {[%emt 00:00:04]} e6 {[%clk 00:17:17]} {[%emt 00:00:45]} 9. Qe2
{[%clk 00:20:12]} {[%emt 00:00:03]} b5 {[%clk 00:15:21]} {[%emt 00:02:02]} 10.
Bb3 {[%clk 00:20:11]} {[%emt 00:00:06]} Qb6 {[%clk 00:14:05]} {[%emt 00:01:21]}
11. c3 {[%clk 00:16:44]} {[%emt 00:03:32]} Be7 {[%clk 00:13:34]} {[%emt
00:00:35]} 12. O-O {[%clk 00:16:13]} {[%emt 00:00:36]} O-O {[%clk 00:13:14]}
{[%emt 00:00:25]} 13. d4 {[%clk 00:16:14]} {[%emt 00:00:04]} Bb7 {[%clk
00:11:30]} {[%emt 00:01:50]} 14. Bg5 {[%clk 00:15:12]} {[%emt 00:01:06]} Rad8
{[%clk 00:09:38]} {[%emt 00:01:57]} 15. Rfe1 {[%clk 00:13:13]} {[%emt
00:02:04]} c5 {[%clk 00:06:57]} {[%emt 00:02:47]} 16. dxc5 {[%clk 00:09:01]}
{[%emt 00:04:17]} Qxc5 {[%clk 00:06:40]} {[%emt 00:00:21]} 17. Rad1 {[%clk
00:08:12]} {[%emt 00:00:54]} Nd5 {[%clk 00:02:21]} {[%emt 00:04:25]} 18. Bxe7
{[%clk 00:07:29]} {[%emt 00:00:47]} Qxe7 {[%clk 00:01:39]} {[%emt 00:00:48]} 19.
Rd4 {[%clk 00:05:14]} {[%emt 00:02:19]} a6 {[%clk 00:00:57]} {[%emt 00:00:48]}
1/2-1/2

[Event "MCR rapid mládeže 2023 U16"]
[Site "Harachov, Czech Republic"]
[Date "2023.09.10"]
[Round "9.4"]
[White "Novotny, Dominik"]
[Black "Svadlenka, Dominik"]
[Result "0-1"]
[TimeControl "20min+5s/move"]
[WhiteElo "1707"]
[BlackElo "1588"]

1. e4 {[%clk 00:20:08]} c6 {[%clk 00:20:10]} {[%emt 00:00:01]} 2. d4 {[%clk
00:19:58]} {[%emt 00:00:15]} d5 {[%clk 00:20:13]} {[%emt 00:00:01]} 3. exd5
{[%clk 00:20:02]} {[%emt 00:00:02]} cxd5 {[%clk 00:20:17]} {[%emt 00:00:01]} 4.
Bd3 {[%clk 00:20:05]} {[%emt 00:00:01]} Nf6 {[%clk 00:20:19]} {[%emt 00:00:04]}
5. c3 {[%clk 00:20:04]} {[%emt 00:00:06]} Nc6 {[%clk 00:20:22]} {[%emt
00:00:02]} 6. Nf3 {[%clk 00:20:05]} {[%emt 00:00:04]} Bg4 {[%clk 00:20:25]}
{[%emt 00:00:02]} 7. O-O {[%clk 00:19:46]} {[%emt 00:00:24]} e6 {[%clk
00:20:28]} {[%emt 00:00:02]} 8. Bf4 {[%clk 00:19:21]} {[%emt 00:00:29]} Be7
{[%clk 00:20:26]} {[%emt 00:00:08]} 9. Nbd2 {[%clk 00:19:14]} {[%emt 00:00:13]}
O-O {[%clk 00:20:26]} {[%emt 00:00:04]} 10. Qb3 {[%clk 00:18:15]} {[%emt
00:01:04]} Na5 {[%clk 00:19:20]} {[%emt 00:01:12]} 11. Qc2 {[%clk 00:18:13]}
{[%emt 00:00:07]} Rc8 {[%clk 00:18:55]} {[%emt 00:00:30]} 12. Ne5 {[%clk
00:17:56]} {[%emt 00:00:22]} Bh5 {[%clk 00:18:47]} {[%emt 00:00:12]} 13. Rae1
{[%clk 00:17:21]} {[%emt 00:00:40]} Nc6 {[%clk 00:18:43]} {[%emt 00:00:09]} 14.
Qb3 {[%clk 00:14:23]} {[%emt 00:03:03]} Na5 {[%clk 00:16:31]} {[%emt 00:02:18]}
15. Qc2 {[%clk 00:14:23]} {[%emt 00:00:05]} a6 {[%clk 00:15:51]} {[%emt
00:00:45]} 16. Bg3 {[%clk 00:13:39]} {[%emt 00:00:48]} Nc6 {[%clk 00:15:38]}
{[%emt 00:00:19]} 17. Nxc6 {[%clk 00:13:02]} {[%emt 00:00:43]} Rxc6 {[%clk
00:15:39]} {[%emt 00:00:03]} 18. f4 {[%clk 00:12:57]} {[%emt 00:00:09]} Bg6
{[%clk 00:12:42]} {[%emt 00:03:02]} 19. f5 {[%clk 00:12:05]} {[%emt 00:00:58]}
exf5 {[%clk 00:12:38]} {[%emt 00:00:09]} 20. Bxf5 {[%clk 00:12:05]} {[%emt
00:00:05]} Re8 {[%clk 00:11:27]} {[%emt 00:01:16]} 21. Bxg6 {[%clk 00:08:27]}
{[%emt 00:03:43]} hxg6 {[%clk 00:11:30]} {[%emt 00:00:02]} 22. Re2 {[%clk
00:08:24]} {[%emt 00:00:07]} Nh5 {[%clk 00:07:48]} {[%emt 00:03:47]} 23. Qd3
{[%clk 00:06:51]} {[%emt 00:01:39]} Nxg3 {[%clk 00:06:49]} {[%emt 00:01:04]} 24.
Qxg3 {[%clk 00:06:52]} {[%emt 00:00:03]} Bf6 {[%clk 00:05:41]} {[%emt
00:01:14]} 25. Rfe1 {[%clk 00:05:52]} {[%emt 00:01:05]} Rxe2 {[%clk 00:05:11]}
{[%emt 00:00:35]} 26. Rxe2 {[%clk 00:05:56]} {[%emt 00:00:01]} Rc7 {[%clk
00:04:13]} {[%emt 00:01:03]} 27. Nf3 {[%clk 00:04:02]} {[%emt 00:01:58]} Re7
{[%clk 00:03:53]} {[%emt 00:00:25]} 28. Rxe7 {[%clk 00:03:26]} {[%emt
00:00:42]} Qxe7 {[%clk 00:03:56]} {[%emt 00:00:01]} 29. Ne5 {[%clk 00:02:56]}
{[%emt 00:00:36]} Bh4 {[%clk 00:02:46]} {[%emt 00:01:14]} 30. Qf3 {[%clk
00:02:07]} {[%emt 00:00:54]} Qe6 {[%clk 00:01:54]} {[%emt 00:00:57]} 31. Qg4
{[%clk 00:01:49]} {[%emt 00:00:22]} Qxg4 {[%clk 00:01:37]} {[%emt 00:00:23]} 32.
Nxg4 {[%clk 00:01:53]} {[%emt 00:00:01]} Bg5 {[%clk 00:01:21]} {[%emt
00:00:20]} 33. Kf2 {[%clk 00:01:10]} {[%emt 00:00:47]} Bc1 {[%clk 00:01:17]}
{[%emt 00:00:10]} 34. Ne3 {[%clk 00:01:14]} {[%emt 00:00:01]} Bxb2 {[%clk
00:01:01]} {[%emt 00:00:21]} 35. Nxd5 {[%clk 00:01:18]} {[%emt 00:00:01]} f6
{[%clk 00:00:56]} {[%emt 00:00:09]} 36. Ke3 {[%clk 00:01:12]} {[%emt 00:00:10]}
Kf7 {[%clk 00:00:57]} {[%emt 00:00:05]} 37. c4 {[%clk 00:01:12]} {[%emt
00:00:05]} Ke6 {[%clk 00:00:49]} {[%emt 00:00:12]} 38. g4 {[%clk 00:00:30]}
{[%emt 00:00:47]} f5 {[%clk 00:00:44]} {[%emt 00:00:11]} 39. Nf4+ {[%clk
00:00:27]} {[%emt 00:00:07]} Kf6 {[%clk 00:00:44]} {[%emt 00:00:05]} 40. h3
{[%clk 00:00:19]} {[%emt 00:00:14]} Bc1+ {[%clk 00:00:41]} {[%emt 00:00:07]} 41.
Kf3 {[%clk 00:00:24]} Bb2 {[%clk 00:00:33]} {[%emt 00:00:14]} 42. d5 {[%clk
00:00:26]} {[%emt 00:00:02]} g5 {[%clk 00:00:32]} {[%emt 00:00:06]} 43. Ne6
{[%clk 00:00:30]} {[%emt 00:00:02]} f4 {[%clk 00:00:28]} {[%emt 00:00:08]} 44.
h4 {[%clk 00:00:32]} {[%emt 00:00:03]} gxh4 {[%clk 00:00:29]} {[%emt 00:00:05]}
45. Nxf4 {[%clk 00:00:34]} {[%emt 00:00:02]} Ba3 {[%clk 00:00:19]} {[%emt
00:00:15]} 46. Ng2 {[%clk 00:00:31]} {[%emt 00:00:08]} g5 {[%clk 00:00:21]}
{[%emt 00:00:02]} 47. Kf2 {[%clk 00:00:22]} {[%emt 00:00:15]} Ke5 {[%clk
00:00:24]} {[%emt 00:00:03]} 48. Ne3 {[%clk 00:00:20]} {[%emt 00:00:06]} Bc5
{[%clk 00:00:27]} {[%emt 00:00:01]} 49. Kf3 {[%clk 00:00:23]} {[%emt 00:00:03]}
Bxe3 {[%clk 00:00:24]} {[%emt 00:00:07]} 50. Kxe3 {[%clk 00:00:27]} {[%emt
00:00:01]} b5 {[%clk 00:00:27]} {[%emt 00:00:03]} 51. Kd3 {[%clk 00:00:06]}
{[%emt 00:00:25]} bxc4+ {[%clk 00:00:30]} {[%emt 00:00:01]} 52. Kxc4 {[%clk
00:00:10]} {[%emt 00:00:01]} h3 {[%clk 00:00:27]} {[%emt 00:00:09]} 53. Kc5
{[%clk 00:00:13]} {[%emt 00:00:03]} h2 {[%clk 00:00:30]} {[%emt 00:00:01]} 54.
d6 {[%clk 00:00:17]} h1=Q {[%emt 00:00:04]} 0-1